[Event "Early-Titled-Tuesday-Blitz-October-24-2023"]
[Site "Chess.com"]
[Date "2023.10.24"]
[Round "3"]
[White "Maluco_do_Natal_00"]
[Black "Arimin1329"]
[Result "0-1"]
[WhiteElo "1995"]
[BlackElo "2313"]
[TimeControl "180+1"]
[EndTime "8:28:06 PDT"]
[Termination "Arimin1329 won by resignation"]

1. e4 {[%clk 0:03:00.9]} 1... c6 {[%clk 0:02:58.7]} 2. d4 {[%clk 0:03:00.4]}
2... d5 {[%clk 0:02:59.6]} 3. Nc3 {[%clk 0:03:00.4]} 3... dxe4 {[%clk
0:02:59.2]} 4. Nxe4 {[%clk 0:03:01.3]} 4... Bf5 {[%clk 0:02:59.5]} 5. Ng3 {[%clk
0:03:01.3]} 5... Bg6 {[%clk 0:03:00]} 6. h4 {[%clk 0:03:01.9]} 6... h6 {[%clk
0:02:59.9]} 7. h5 {[%clk 0:03:02.1]} 7... Bh7 {[%clk 0:03:00.4]} 8. Nf3 {[%clk
0:03:02.7]} 8... Nf6 {[%clk 0:03:00.5]} 9. Bd3 {[%clk 0:03:03.3]} 9... Bxd3
{[%clk 0:02:59.5]} 10. Qxd3 {[%clk 0:03:04.2]} 10... e6 {[%clk 0:03:00.3]} 11.
Bd2 {[%clk 0:03:04.5]} 11... Nbd7 {[%clk 0:03:00.7]} 12. O-O-O {[%clk
0:03:03.5]} 12... Bd6 {[%clk 0:03:01.3]} 13. Ne4 {[%clk 0:03:03.7]} 13... Nxe4
{[%clk 0:03:00.1]} 14. Qxe4 {[%clk 0:03:04.6]} 14... Nf6 {[%clk 0:03:00.2]} 15.
Qe2 {[%clk 0:03:04.6]} 15... Qc7 {[%clk 0:02:59.4]} 16. Kb1 {[%clk 0:03:04.1]}
16... O-O-O {[%clk 0:02:59.1]} 17. Ne5 {[%clk 0:03:03.2]} 17... Kb8 {[%clk
0:02:49.8]} 18. f4 {[%clk 0:03:00.3]} 18... Rhe8 {[%clk 0:02:42.6]} 19. c4
{[%clk 0:02:51.8]} 19... c5 {[%clk 0:02:40.6]} 20. Bc3 {[%clk 0:02:34.8]} 20...
cxd4 {[%clk 0:02:36.5]} 21. Bxd4 {[%clk 0:02:34.5]} 21... Ka8 {[%clk 0:02:27.5]}
22. g4 {[%clk 0:02:25.2]} 22... Rc8 {[%clk 0:02:12.6]} 23. Rc1 {[%clk
0:02:06.4]} 23... Red8 {[%clk 0:02:10.7]} 24. Rhd1 {[%clk 0:02:05.5]} 24... Qe7
{[%clk 0:01:44.2]} 25. a3 {[%clk 0:00:59.7]} 25... Rc7 {[%clk 0:01:23.2]} 26. c5
{[%clk 0:00:19.1]} 26... Bxe5 {[%clk 0:01:16.3]} 27. Bxe5 {[%clk 0:00:15.6]}
27... Rcd7 {[%clk 0:01:11]} 28. Rxd7 {[%clk 0:00:11.8]} 28... Qxd7 {[%clk
0:01:10.1]} 29. Bxf6 {[%clk 0:00:11]} 29... gxf6 {[%clk 0:01:10.1]} 30. Qe4
{[%clk 0:00:10]} 30... Qc6 {[%clk 0:01:08]} 31. Qxc6 {[%clk 0:00:09.6]} 31...
bxc6 {[%clk 0:01:08.9]} 32. Rg1 {[%clk 0:00:07.2]} 32... Rd5 {[%clk 0:01:04.2]}
33. g5 {[%clk 0:00:07.4]} 33... fxg5 {[%clk 0:01:03.7]} 34. fxg5 {[%clk
0:00:07.6]} 34... hxg5 {[%clk 0:00:56.3]} 35. h6 {[%clk 0:00:07.8]} 35... g4
{[%clk 0:00:56]} 36. Rxg4 {[%clk 0:00:07]} 36... Rh5 {[%clk 0:00:56.4]} 37. Rf4
{[%clk 0:00:07.1]} 37... f5 {[%clk 0:00:54.9]} 38. Rd4 {[%clk 0:00:05.8]} 38...
Rxh6 {[%clk 0:00:54.2]} 39. Rd7 {[%clk 0:00:05.9]} 39... Rf6 {[%clk 0:00:50.4]}
40. Kc2 {[%clk 0:00:03.5]} 40... e5 {[%clk 0:00:49.6]} 41. Kd2 {[%clk
0:00:03.8]} 41... e4 {[%clk 0:00:49.5]} 42. Ke3 {[%clk 0:00:03.9]} 42... Kb8
{[%clk 0:00:46.9]} 43. b4 {[%clk 0:00:03.9]} 43... Kc8 {[%clk 0:00:46.3]} 44.
Rxa7 {[%clk 0:00:04.1]} 44... Rg6 {[%clk 0:00:46]} 45. Rf7 {[%clk 0:00:04]}
45... Rg3+ {[%clk 0:00:45.5]} 46. Kf4 {[%clk 0:00:04.3]} 46... Rf3+ {[%clk
0:00:45.8]} 47. Ke5 {[%clk 0:00:03.7]} 47... e3 {[%clk 0:00:46.3]} 48. Kd6
{[%clk 0:00:04]} 48... f4 {[%clk 0:00:37.7]} 49. Kxc6 {[%clk 0:00:04.2]} 49...
Kd8 {[%clk 0:00:37.4]} 50. Rd7+ {[%clk 0:00:03.5]} 50... Ke8 {[%clk 0:00:37.4]}
51. b5 {[%clk 0:00:03.9]} 51... e2 {[%clk 0:00:37.1]} 52. b6 {[%clk 0:00:04.3]}
52... e1=Q {[%clk 0:00:36.9]} 53. b7 {[%clk 0:00:04.6]} 53... Qe4+ {[%clk
0:00:37.2]} 54. Kc7 {[%clk 0:00:04.3]} 54... Rb3 {[%clk 0:00:37]} 55. Rd8+
{[%clk 0:00:03.5]} 55... Ke7 {[%clk 0:00:37.4]} 56. b8=Q {[%clk 0:00:03.8]}
56... Qe5+ {[%clk 0:00:30.3]} 57. Rd6 {[%clk 0:00:03.7]} 57... Qxc5+ {[%clk
0:00:26.1]} 58. Rc6 {[%clk 0:00:03.1]} 58... Qxc6+ {[%clk 0:00:26.4]} 59. Kxc6
{[%clk 0:00:03]} 59... Rxb8 {[%clk 0:00:27.3]} 0-1

[Event "Early-Titled-Tuesday-Blitz-October-24-2023"]
[Site "Chess.com"]
[Date "2023.10.24"]
[Round "3"]
[White "slorovel"]
[Black "NikolaGry"]
[Result "0-1"]
[WhiteElo "2465"]
[BlackElo "2724"]
[TimeControl "180+1"]
[EndTime "8:28:07 PDT"]
[Termination "NikolaGry won by resignation"]

1. e4 {[%clk 0:02:59.9]} 1... d5 {[%clk 0:02:55.9]} 2. exd5 {[%clk 0:02:47.7]}
2... Nf6 {[%clk 0:02:55.9]} 3. d4 {[%clk 0:02:44.9]} 3... Nxd5 {[%clk
0:02:55.9]} 4. Nf3 {[%clk 0:02:44.5]} 4... g6 {[%clk 0:02:54.1]} 5. Be2 {[%clk
0:02:42.1]} 5... Bg7 {[%clk 0:02:54.2]} 6. O-O {[%clk 0:02:41.1]} 6... O-O
{[%clk 0:02:54.2]} 7. c4 {[%clk 0:02:37.1]} 7... Nb6 {[%clk 0:02:53.7]} 8. Nc3
{[%clk 0:02:35.4]} 8... Nc6 {[%clk 0:02:46.5]} 9. Be3 {[%clk 0:02:34.5]} 9... e5
{[%clk 0:02:44.5]} 10. d5 {[%clk 0:02:32.1]} 10... Ne7 {[%clk 0:02:44.4]} 11. a4
{[%clk 0:02:22.4]} 11... Nf5 {[%clk 0:02:43.8]} 12. Bc5 {[%clk 0:02:19.3]} 12...
Re8 {[%clk 0:02:43]} 13. Bd3 {[%clk 0:01:56.5]} 13... Nd6 {[%clk 0:02:33.8]} 14.
Nd2 {[%clk 0:01:47.9]} 14... f5 {[%clk 0:02:27.8]} 15. Be2 {[%clk 0:01:41.4]}
15... e4 {[%clk 0:02:22.3]} 16. Be3 {[%clk 0:01:24.6]} 16... Nf7 {[%clk
0:02:10]} 17. a5 {[%clk 0:01:09.3]} 17... Nd7 {[%clk 0:02:09.2]} 18. Nb3 {[%clk
0:01:09.8]} 18... Nde5 {[%clk 0:02:02.7]} 19. Nd4 {[%clk 0:01:07.3]} 19... g5
{[%clk 0:02:02]} 20. a6 {[%clk 0:00:55.3]} 20... bxa6 {[%clk 0:01:43.3]} 21. c5
{[%clk 0:00:44.6]} 21... f4 {[%clk 0:01:39.6]} 22. Bc1 {[%clk 0:00:43.7]} 22...
f3 {[%clk 0:01:29]} 23. gxf3 {[%clk 0:00:38.3]} 23... exf3 {[%clk 0:01:28.7]}
24. Nxf3 {[%clk 0:00:39.2]} 24... Bh3 {[%clk 0:01:28]} 25. Re1 {[%clk 0:00:34]}
25... Qf6 {[%clk 0:01:20.7]} 26. Ne4 {[%clk 0:00:24.9]} 26... Qg6 {[%clk
0:01:13.9]} 27. Ng3 {[%clk 0:00:24]} 27... Nxf3+ {[%clk 0:00:42.3]} 28. Bxf3
{[%clk 0:00:23.7]} 28... Ne5 {[%clk 0:00:32.9]} 29. Be4 {[%clk 0:00:23.2]} 29...
Qf7 {[%clk 0:00:31]} 30. Bxg5 {[%clk 0:00:17.2]} 30... Rf8 {[%clk 0:00:29.6]}
31. Be3 {[%clk 0:00:15.9]} 31... Bg4 {[%clk 0:00:28.1]} 32. Qc2 {[%clk
0:00:13.7]} 32... Nf3+ {[%clk 0:00:27.5]} 33. Bxf3 {[%clk 0:00:13.9]} 33... Bxf3
{[%clk 0:00:25.9]} 34. Rxa6 {[%clk 0:00:12.5]} 34... Rae8 {[%clk 0:00:24.4]} 35.
d6 {[%clk 0:00:09.1]} 35... cxd6 {[%clk 0:00:18.9]} 36. Rxd6 {[%clk 0:00:10]}
36... h5 {[%clk 0:00:15.9]} 37. Qg6 {[%clk 0:00:06.8]} 37... h4 {[%clk 0:00:11]}
38. Qxf7+ {[%clk 0:00:06.4]} 38... Rxf7 {[%clk 0:00:11]} 39. Nf1 {[%clk
0:00:06.1]} 39... Bxb2 {[%clk 0:00:08.5]} 40. Rg6+ {[%clk 0:00:05.8]} 40... Kh7
{[%clk 0:00:07.6]} 41. Rg5 {[%clk 0:00:03.3]} 41... Bf6 {[%clk 0:00:07.5]} 42.
Rg2 {[%clk 0:00:03.1]} 42... Bxg2 {[%clk 0:00:06.6]} 43. Kxg2 {[%clk 0:00:04]}
43... Bd4 {[%clk 0:00:06]} 44. h3 {[%clk 0:00:03.4]} 44... Rg8+ {[%clk
0:00:05.8]} 45. Kh2 {[%clk 0:00:03.5]} 45... Bxe3 {[%clk 0:00:06.1]} 46. fxe3
{[%clk 0:00:03.9]} 46... Rf2+ {[%clk 0:00:06]} 47. Kh1 {[%clk 0:00:04.4]} 47...
Rc2 {[%clk 0:00:05.4]} 48. e4 {[%clk 0:00:04.7]} 48... Rxc5 {[%clk 0:00:05.3]}
49. Ne3 {[%clk 0:00:05.1]} 49... Rg3 {[%clk 0:00:03.9]} 50. Ng4 {[%clk
0:00:05.4]} 50... Rxh3+ {[%clk 0:00:03.6]} 0-1

[Event "Early-Titled-Tuesday-Blitz-October-24-2023"]
[Site "Chess.com"]
[Date "2023.10.24"]
[Round "3"]
[White "LuisFSiles"]
[Black "ProfessorChess101"]
[Result "0-1"]
[WhiteElo "2271"]
[BlackElo "2531"]
[TimeControl "180+1"]
[EndTime "8:28:08 PDT"]
[Termination "ProfessorChess101 won on time"]

1. e4 {[%clk 0:03:00.9]} 1... a6 {[%clk 0:02:57.6]} 2. d4 {[%clk 0:02:58.7]}
2... e6 {[%clk 0:02:56.8]} 3. Bd3 {[%clk 0:02:57.5]} 3... b5 {[%clk 0:02:56.7]}
4. Nf3 {[%clk 0:02:57.1]} 4... Bb7 {[%clk 0:02:57.2]} 5. O-O {[%clk 0:02:55.4]}
5... c5 {[%clk 0:02:57.8]} 6. c3 {[%clk 0:02:54.6]} 6... d6 {[%clk 0:02:56.7]}
7. Re1 {[%clk 0:02:52.2]} 7... Nd7 {[%clk 0:02:56.7]} 8. Nbd2 {[%clk 0:02:50.3]}
8... e5 {[%clk 0:02:56.9]} 9. Nf1 {[%clk 0:02:43.5]} 9... Ngf6 {[%clk
0:02:53.8]} 10. a4 {[%clk 0:02:27]} 10... c4 {[%clk 0:02:44.1]} 11. Bc2 {[%clk
0:02:25.6]} 11... Be7 {[%clk 0:02:38.8]} 12. Ng3 {[%clk 0:02:22.3]} 12... O-O
{[%clk 0:02:33.7]} 13. Nf5 {[%clk 0:02:21.8]} 13... Re8 {[%clk 0:02:33.4]} 14.
Bg5 {[%clk 0:02:12.6]} 14... Bf8 {[%clk 0:02:28]} 15. d5 {[%clk 0:01:44.1]}
15... h6 {[%clk 0:02:23.5]} 16. Bh4 {[%clk 0:01:40.6]} 16... g6 {[%clk
0:02:21.3]} 17. Ne3 {[%clk 0:01:22.2]} 17... Nc5 {[%clk 0:02:19.6]} 18. Nd2
{[%clk 0:01:16.2]} 18... Bg7 {[%clk 0:02:17.2]} 19. Qf3 {[%clk 0:01:07.7]} 19...
Ncd7 {[%clk 0:02:04.5]} 20. g4 {[%clk 0:00:54.8]} 20... Qc7 {[%clk 0:01:56.4]}
21. Kh1 {[%clk 0:00:43.5]} 21... Nh7 {[%clk 0:01:54.9]} 22. Rg1 {[%clk
0:00:35.4]} 22... Nc5 {[%clk 0:01:50.1]} 23. Nf5 {[%clk 0:00:29.5]} 23... gxf5
{[%clk 0:01:35.4]} 24. gxf5 {[%clk 0:00:27.7]} 24... f6 {[%clk 0:01:35.7]} 25.
Rg6 {[%clk 0:00:19.7]} 25... Kh8 {[%clk 0:01:26.1]} 26. Rag1 {[%clk 0:00:18.1]}
26... Rg8 {[%clk 0:01:26]} 27. Qe3 {[%clk 0:00:18.3]} 27... Qf7 {[%clk
0:01:16.7]} 28. Nf3 {[%clk 0:00:18.4]} 28... Raf8 {[%clk 0:00:42.3]} 29. Bg3
{[%clk 0:00:18.7]} 29... Bxd5 {[%clk 0:00:33.7]} 30. exd5 {[%clk 0:00:18.2]}
30... Qxd5 {[%clk 0:00:34.6]} 31. Bd1 {[%clk 0:00:16.9]} 31... Nd3 {[%clk
0:00:30.5]} 32. h4 {[%clk 0:00:15.4]} 32... e4 {[%clk 0:00:13.4]} 33. Nh2 {[%clk
0:00:14.7]} 33... Qxf5 {[%clk 0:00:09.3]} 34. h5 {[%clk 0:00:12.9]} 34... Ng5
{[%clk 0:00:08.2]} 35. Ng4 {[%clk 0:00:10.8]} 35... Kh7 {[%clk 0:00:06.7]} 36.
Bf4 {[%clk 0:00:09.5]} 36... Ne5 {[%clk 0:00:06.4]} 37. Bxe5 {[%clk 0:00:08.9]}
37... fxe5 {[%clk 0:00:05]} 38. f4 {[%clk 0:00:09.8]} 38... exf4 {[%clk
0:00:05]} 39. Qa7 {[%clk 0:00:10]} 39... Rf7 {[%clk 0:00:04.8]} 40. Qd4 {[%clk
0:00:08.9]} 40... Bxd4 {[%clk 0:00:04.4]} 41. Rxh6+ {[%clk 0:00:09.3]} 41... Kg7
{[%clk 0:00:04.3]} 42. cxd4 {[%clk 0:00:08.8]} 42... Kf8 {[%clk 0:00:04.3]} 43.
axb5 {[%clk 0:00:06]} 43... axb5 {[%clk 0:00:03.8]} 44. Bc2 {[%clk 0:00:04.9]}
44... f3 {[%clk 0:00:04]} 45. Ra1 {[%clk 0:00:04.5]} 45... Ne6 {[%clk
0:00:03.3]} 46. Ra8+ {[%clk 0:00:04.2]} 46... Kg7 {[%clk 0:00:03]} 47. Rg6+
{[%clk 0:00:04.4]} 47... Kh7 {[%clk 0:00:03]} 48. Raxg8 {[%clk 0:00:03.3]} 48...
Qxh5+ {[%clk 0:00:03.1]} 49. Kg1 {[%clk 0:00:02.4]} 49... f2+ {[%clk 0:00:03.3]}
0-1

[Event "Early-Titled-Tuesday-Blitz-October-24-2023"]
[Site "Chess.com"]
[Date "2023.10.24"]
[Round "3"]
[White "Hooded_Old_Man"]
[Black "Alexchess1984"]
[Result "0-1"]
[WhiteElo "2365"]
[BlackElo "2693"]
[TimeControl "180+1"]
[EndTime "8:28:08 PDT"]
[Termination "Alexchess1984 won by resignation"]

1. d4 {[%clk 0:03:00.9]} 1... Nf6 {[%clk 0:02:57.4]} 2. Nf3 {[%clk 0:03:00.8]}
2... g6 {[%clk 0:02:54.6]} 3. e3 {[%clk 0:03:01.4]} 3... Bg7 {[%clk 0:02:54]} 4.
Be2 {[%clk 0:03:02.1]} 4... d5 {[%clk 0:02:50.5]} 5. O-O {[%clk 0:03:01.9]} 5...
c5 {[%clk 0:02:46.9]} 6. Nbd2 {[%clk 0:03:02.5]} 6... Nc6 {[%clk 0:02:42.2]} 7.
c3 {[%clk 0:03:03.1]} 7... O-O {[%clk 0:02:30.2]} 8. b3 {[%clk 0:02:59.3]} 8...
cxd4 {[%clk 0:02:27.4]} 9. cxd4 {[%clk 0:02:58.1]} 9... Bf5 {[%clk 0:02:26.7]}
10. Bb2 {[%clk 0:02:54.6]} 10... Rc8 {[%clk 0:02:24.5]} 11. Rc1 {[%clk 0:02:54]}
11... Qa5 {[%clk 0:02:23.7]} 12. Bc3 {[%clk 0:02:44.2]} 12... Qb6 {[%clk
0:02:20.7]} 13. h3 {[%clk 0:02:33.8]} 13... Nb4 {[%clk 0:02:15.8]} 14. Bxb4
{[%clk 0:02:30.8]} 14... Qxb4 {[%clk 0:02:16.7]} 15. Ne5 {[%clk 0:02:23.7]}
15... Qa3 {[%clk 0:02:05.1]} 16. g4 {[%clk 0:02:12.3]} 16... Be6 {[%clk
0:01:53.8]} 17. Rxc8 {[%clk 0:02:00.3]} 17... Rxc8 {[%clk 0:01:54.7]} 18. Qb1
{[%clk 0:02:00.5]} 18... Nd7 {[%clk 0:01:47.1]} 19. Nxd7 {[%clk 0:01:59.6]}
19... Bxd7 {[%clk 0:01:48]} 20. Nf3 {[%clk 0:01:43.1]} 20... f5 {[%clk
0:01:15.2]} 21. Ne5 {[%clk 0:01:39.2]} 21... Bxe5 {[%clk 0:01:14.9]} 22. dxe5
{[%clk 0:01:40.1]} 22... fxg4 {[%clk 0:01:13.4]} 23. Bxg4 {[%clk 0:01:39.8]}
23... Bxg4 {[%clk 0:01:12.8]} 24. hxg4 {[%clk 0:01:40.7]} 24... Qb4 {[%clk
0:01:12.9]} 25. Qd1 {[%clk 0:01:37.9]} 25... Qe4 {[%clk 0:01:11.4]} 26. Qd4
{[%clk 0:01:22.6]} 26... Qxd4 {[%clk 0:01:11.2]} 27. exd4 {[%clk 0:01:23.5]}
27... Rc2 {[%clk 0:01:11.7]} 28. a3 {[%clk 0:01:19.5]} 28... Kg7 {[%clk
0:01:05.2]} 29. b4 {[%clk 0:01:06.9]} 29... e6 {[%clk 0:00:59.5]} 30. Kg2 {[%clk
0:01:02.1]} 30... h5 {[%clk 0:00:55.8]} 31. gxh5 {[%clk 0:01:01.7]} 31... gxh5
{[%clk 0:00:56.7]} 32. Rh1 {[%clk 0:01:01.1]} 32... Kg6 {[%clk 0:00:56.8]} 33.
Rh3 {[%clk 0:00:58.5]} 33... Rd2 {[%clk 0:00:54.8]} 34. Rg3+ {[%clk 0:00:56.3]}
34... Kf7 {[%clk 0:00:52.2]} 35. Rf3+ {[%clk 0:00:54.6]} 35... Kg6 {[%clk
0:00:43.2]} 36. Rg3+ {[%clk 0:00:54.6]} 36... Kh6 {[%clk 0:00:39.6]} 37. Rf3
{[%clk 0:00:50.8]} 37... Kg5 {[%clk 0:00:39.7]} 38. Rf6 {[%clk 0:00:46.7]} 38...
Rxd4 {[%clk 0:00:37.8]} 39. Rxe6 {[%clk 0:00:40.3]} 39... Kf5 {[%clk 0:00:36.7]}
40. Rh6 {[%clk 0:00:39.3]} 40... Kxe5 {[%clk 0:00:24.9]} 41. Rxh5+ {[%clk
0:00:39.7]} 41... Kd6 {[%clk 0:00:24.7]} 42. Rh6+ {[%clk 0:00:38.5]} 42... Kc7
{[%clk 0:00:24.8]} 43. Rh3 {[%clk 0:00:19.3]} 43... Rd2 {[%clk 0:00:20.4]} 44.
Rc3+ {[%clk 0:00:18.3]} 44... Kd6 {[%clk 0:00:20.1]} 45. Kf3 {[%clk 0:00:19]}
45... d4 {[%clk 0:00:18]} 46. Rb3 {[%clk 0:00:17]} 46... Kd5 {[%clk 0:00:16.1]}
47. b5 {[%clk 0:00:16.2]} 47... Rc2 {[%clk 0:00:14.3]} 48. Rb4 {[%clk
0:00:12.3]} 48... Rc4 {[%clk 0:00:12.6]} 49. Rxc4 {[%clk 0:00:09]} 49... Kxc4
{[%clk 0:00:13.5]} 50. a4 {[%clk 0:00:07.9]} 50... Kd3 {[%clk 0:00:11.6]} 51.
Kg3 {[%clk 0:00:04.3]} 51... Ke2 {[%clk 0:00:11.3]} 52. f4 {[%clk 0:00:04.5]}
52... d3 {[%clk 0:00:12.2]} 53. f5 {[%clk 0:00:05.4]} 53... d2 {[%clk
0:00:13.1]} 54. f6 {[%clk 0:00:06.3]} 54... d1=Q {[%clk 0:00:14]} 55. f7 {[%clk
0:00:07.2]} 55... Qd8 {[%clk 0:00:14.3]} 0-1

[Event "Early-Titled-Tuesday-Blitz-October-24-2023"]
[Site "Chess.com"]
[Date "2023.10.24"]
[Round "3"]
[White "koncheto"]
[Black "InitiatingASC"]
[Result "1-0"]
[WhiteElo "2533"]
[BlackElo "2332"]
[TimeControl "180+1"]
[EndTime "8:28:08 PDT"]
[Termination "koncheto won on time"]

1. e4 {[%clk 0:03:00.9]} 1... e5 {[%clk 0:02:54.9]} 2. Nf3 {[%clk 0:02:58.3]}
2... Nf6 {[%clk 0:02:50.8]} 3. Nxe5 {[%clk 0:02:57.7]} 3... d6 {[%clk
0:02:49.4]} 4. Nf3 {[%clk 0:02:58]} 4... Nxe4 {[%clk 0:02:49.4]} 5. d4 {[%clk
0:02:58.6]} 5... d5 {[%clk 0:02:49.6]} 6. Bd3 {[%clk 0:02:57]} 6... Nc6 {[%clk
0:02:49.7]} 7. h3 {[%clk 0:02:50.8]} 7... Be7 {[%clk 0:02:47.5]} 8. O-O {[%clk
0:02:48.8]} 8... O-O {[%clk 0:02:47.1]} 9. c4 {[%clk 0:02:49.3]} 9... Nb4 {[%clk
0:02:44.5]} 10. Nc3 {[%clk 0:02:49.2]} 10... Nxc3 {[%clk 0:02:41.6]} 11. bxc3
{[%clk 0:02:50.1]} 11... Nxd3 {[%clk 0:02:42]} 12. Qxd3 {[%clk 0:02:50.1]} 12...
dxc4 {[%clk 0:02:42.6]} 13. Qxc4 {[%clk 0:02:51]} 13... Be6 {[%clk 0:02:36.9]}
14. Qd3 {[%clk 0:02:37.7]} 14... c5 {[%clk 0:02:31.4]} 15. Bf4 {[%clk
0:02:21.1]} 15... cxd4 {[%clk 0:02:29]} 16. cxd4 {[%clk 0:02:20]} 16... Rc8
{[%clk 0:02:26]} 17. Rfc1 {[%clk 0:02:11.6]} 17... Qd5 {[%clk 0:02:15.6]} 18.
Rxc8 {[%clk 0:02:06.3]} 18... Rxc8 {[%clk 0:02:13.9]} 19. a4 {[%clk 0:02:07.1]}
19... h6 {[%clk 0:02:03.4]} 20. Re1 {[%clk 0:01:31.9]} 20... Bb4 {[%clk
0:01:55.8]} 21. Re5 {[%clk 0:01:30.5]} 21... Qa2 {[%clk 0:01:42.1]} 22. Rb5
{[%clk 0:01:01.8]} 22... a5 {[%clk 0:01:36.1]} 23. d5 {[%clk 0:00:54.3]} 23...
Rd8 {[%clk 0:01:32.5]} 24. d6 {[%clk 0:00:33.7]} 24... Qxa4 {[%clk 0:01:25.1]}
25. Rxb7 {[%clk 0:00:33.2]} 25... Qc6 {[%clk 0:00:57.8]} 26. Qb5 {[%clk
0:00:28.9]} 26... Qxb5 {[%clk 0:00:43.6]} 27. Rxb5 {[%clk 0:00:28.9]} 27... Bc4
{[%clk 0:00:43.9]} 28. Rb6 {[%clk 0:00:21.6]} 28... g5 {[%clk 0:00:40.8]} 29.
Bg3 {[%clk 0:00:20.1]} 29... Bd5 {[%clk 0:00:37.5]} 30. Nd4 {[%clk 0:00:11.9]}
30... Bc3 {[%clk 0:00:22.8]} 31. Nf5 {[%clk 0:00:08.7]} 31... Be6 {[%clk
0:00:20.2]} 32. Nxh6+ {[%clk 0:00:07]} 32... Kg7 {[%clk 0:00:20]} 33. Ng4 {[%clk
0:00:07.6]} 33... a4 {[%clk 0:00:20.6]} 34. Ra6 {[%clk 0:00:06.6]} 34... Bb3
{[%clk 0:00:15.5]} 35. Ne5 {[%clk 0:00:05.2]} 35... Bb2 {[%clk 0:00:12.6]} 36.
Nd3 {[%clk 0:00:03.4]} 36... a3 {[%clk 0:00:12.3]} 37. Nxb2 {[%clk 0:00:03.8]}
37... axb2 {[%clk 0:00:12.7]} 38. Be5+ {[%clk 0:00:04.7]} 38... Kg6 {[%clk
0:00:11.3]} 39. Bxb2 {[%clk 0:00:05.6]} 39... Kf5 {[%clk 0:00:10.8]} 40. Ra5+
{[%clk 0:00:05.3]} 40... Ke6 {[%clk 0:00:10.1]} 41. Rxg5 {[%clk 0:00:03.6]}
41... Rxd6 {[%clk 0:00:09.5]} 42. Re5+ {[%clk 0:00:04.2]} 42... Kd7 {[%clk
0:00:09.5]} 43. h4 {[%clk 0:00:04.9]} 43... Bc2 {[%clk 0:00:07.8]} 44. h5 {[%clk
0:00:04.2]} 44... Rb6 {[%clk 0:00:07.4]} 45. Bd4 {[%clk 0:00:03.8]} 45... Rh6
{[%clk 0:00:07.1]} 46. Be3 {[%clk 0:00:03.6]} 46... Rh8 {[%clk 0:00:06.4]} 47.
g4 {[%clk 0:00:03.8]} 47... Kd6 {[%clk 0:00:05.6]} 48. Ra5 {[%clk 0:00:02.7]}
48... Ke7 {[%clk 0:00:03.4]} 49. h6 {[%clk 0:00:02.5]} 49... Bg6 {[%clk
0:00:02.8]} 50. Kh2 {[%clk 0:00:02.9]} 50... Rb8 {[%clk 0:00:01.8]} 51. Kg3
{[%clk 0:00:03.1]} 51... Rb4 {[%clk 0:00:02]} 52. Bc5+ {[%clk 0:00:03]} 52...
Kd7 {[%clk 0:00:02]} 53. Bxb4 {[%clk 0:00:03.9]} 1-0

[Event "Early-Titled-Tuesday-Blitz-October-24-2023"]
[Site "Chess.com"]
[Date "2023.10.24"]
[Round "3"]
[White "carokannlover213"]
[Black "bardiya_Daneshvar"]
[Result "1-0"]
[WhiteElo "2737"]
[BlackElo "2963"]
[TimeControl "180+1"]
[EndTime "8:28:10 PDT"]
[Termination "carokannlover213 won on time"]

1. e4 {[%clk 0:03:00.9]} 1... g6 {[%clk 0:02:58.7]} 2. d4 {[%clk 0:03:00.6]}
2... Bg7 {[%clk 0:02:59.6]} 3. Nc3 {[%clk 0:03:01.1]} 3... d6 {[%clk 0:02:58.9]}
4. Be3 {[%clk 0:03:01.3]} 4... a6 {[%clk 0:02:59.3]} 5. g4 {[%clk 0:02:56.9]}
5... b5 {[%clk 0:02:59.1]} 6. Bg2 {[%clk 0:02:57]} 6... Bb7 {[%clk 0:02:59.2]}
7. h4 {[%clk 0:02:56.5]} 7... h6 {[%clk 0:02:51.9]} 8. Nge2 {[%clk 0:02:52.5]}
8... Nd7 {[%clk 0:02:50.3]} 9. Ng3 {[%clk 0:02:51.3]} 9... c5 {[%clk 0:02:48.6]}
10. h5 {[%clk 0:02:48.6]} 10... cxd4 {[%clk 0:02:06.2]} 11. Bxd4 {[%clk
0:02:49.5]} 11... e5 {[%clk 0:02:06.7]} 12. Be3 {[%clk 0:02:48.8]} 12... Ndf6
{[%clk 0:01:57.9]} 13. g5 {[%clk 0:02:40.2]} 13... hxg5 {[%clk 0:01:56.2]} 14.
hxg6 {[%clk 0:02:39.4]} 14... Rxh1+ {[%clk 0:01:53]} 15. Bxh1 {[%clk 0:02:40.3]}
15... fxg6 {[%clk 0:01:52.6]} 16. Bxg5 {[%clk 0:02:40.7]} 16... Rc8 {[%clk
0:01:52]} 17. Bf3 {[%clk 0:02:35.1]} 17... b4 {[%clk 0:01:41.3]} 18. Nd5 {[%clk
0:02:30.9]} 18... Bxd5 {[%clk 0:01:40]} 19. exd5 {[%clk 0:02:31]} 19... Qc7
{[%clk 0:01:33.1]} 20. Rc1 {[%clk 0:02:08.1]} 20... Qc4 {[%clk 0:01:31.6]} 21.
Qe2 {[%clk 0:01:08.6]} 21... Qxa2 {[%clk 0:01:27.2]} 22. Qd3 {[%clk 0:01:07.9]}
22... Ne7 {[%clk 0:01:21.3]} 23. Bxf6 {[%clk 0:01:02.8]} 23... Bxf6 {[%clk
0:01:01.1]} 24. Ne4 {[%clk 0:01:01.1]} 24... Qxb2 {[%clk 0:00:59.6]} 25. Kd1
{[%clk 0:00:50.9]} 25... Rc3 {[%clk 0:00:30.2]} 26. Nxc3 {[%clk 0:00:46.4]}
26... bxc3 {[%clk 0:00:27.5]} 27. Qxa6 {[%clk 0:00:43.6]} 27... Qb4 {[%clk
0:00:22.2]} 28. Qd3 {[%clk 0:00:41.2]} 28... Kf7 {[%clk 0:00:06.4]} 29. Qe4
{[%clk 0:00:37.2]} 29... Qb2 {[%clk 0:00:04.2]} 30. Qe3 {[%clk 0:00:30.7]} 30...
Nf5 {[%clk 0:00:03.2]} 31. Qa7+ {[%clk 0:00:27.2]} 31... Ne7 {[%clk 0:00:03.8]}
32. Ra1 {[%clk 0:00:20.8]} 32... Qb5 {[%clk 0:00:04.4]} 33. Qa6 {[%clk
0:00:10.1]} 33... Qc5 {[%clk 0:00:03.6]} 34. Qe2 {[%clk 0:00:08.1]} 34... Bg5
{[%clk 0:00:02.7]} 35. Be4 {[%clk 0:00:07.8]} 35... Qd4+ {[%clk 0:00:03.4]} 36.
Ke1 {[%clk 0:00:06.4]} 36... Qb4 {[%clk 0:00:03.4]} 37. Rd1 {[%clk 0:00:05.8]}
37... Bd2+ {[%clk 0:00:02.9]} 38. Kf1 {[%clk 0:00:06.4]} 38... Qd4 {[%clk
0:00:02.7]} 39. Qf3+ {[%clk 0:00:06.6]} 39... Kg7 {[%clk 0:00:03.3]} 40. Kg2
{[%clk 0:00:03.3]} 40... Qb6 {[%clk 0:00:02]} 41. Rh1 {[%clk 0:00:03.5]} 41...
Qd8 {[%clk 0:00:02.5]} 42. Qh3 {[%clk 0:00:03.3]} 42... Qg8 {[%clk 0:00:02.6]}
43. Qd7 {[%clk 0:00:02.6]} 43... Qf7 {[%clk 0:00:03.1]} 44. Qe6 {[%clk
0:00:02.6]} 44... Qxe6 {[%clk 0:00:03.4]} 45. dxe6 {[%clk 0:00:03.5]} 45... Kf6
{[%clk 0:00:03.8]} 46. Rh7 {[%clk 0:00:03.3]} 46... d5 {[%clk 0:00:03.7]} 47.
Bf3 {[%clk 0:00:03.1]} 47... e4 {[%clk 0:00:04]} 48. Bg4 {[%clk 0:00:03.2]}
48... Nf5 {[%clk 0:00:03.7]} 49. Bxf5 {[%clk 0:00:02.4]} 1-0